fUSD/lending_fUSD_20251212
["ID","MTS","AMOUNT","RATE_DAILY","PERIOD"]
[398321057,1765537838199,-1946.15842559,0.00034323,2]
[398321058,1765537838209,-612.09314852,0.00034325,2]
[398321059,1765537838219,-1574.5326485,0.00034333,2]
[398321060,1765537838304,-419.13912212,0.00034333,2]
[398321061,1765537838316,-3946.61824804,0.00034333,2]
[398321065,1765537840237,-2039.52,0.00033909,2]
[398321066,1765537840246,-14105.07998134,0.00034333,2]
[398321067,1765537840255,-5000.0,0.00034409,2]
[398321068,1765537840265,-344.25,0.00034467,14]
[398321069,1765537840274,-3860.09243227,0.00034554,2]
[398321070,1765537840283,-714.45,0.00034621,2]
[398321071,1765537840292,-3406.02,0.00034649,30]
[398321072,1765537840301,-999.0,0.00034654,3]
[398321073,1765537840311,-344.25,0.00034741,14]
[398321074,1765537840320,-200.0,0.00034803,2]
[398321075,1765537840330,-374.76,0.00034831,40]
[398321076,1765537840340,-612.09314852,0.0003485,2]
[398321077,1765537840349,-151.0,0.00034953,2]
[398321078,1765537840358,-333.7107,0.00034953,2]
[398321079,1765537840368,-22938.8634469,0.00034964,2]
[398321080,1765537840377,-2039.52,0.00034964,2]
[398321081,1765537840386,-39638.6,0.00034974,2]
[398321082,1765537840657,-344.28,0.00035015,14]
[398321088,1765537840749,-955.83,0.00035053,30]
[398321090,1765537840758,-7646.28781562,0.00035143,2]
[398321092,1765537840767,-6348.87,0.00035153,2]
[398321094,1765537840776,-3661.04,0.000353,2]
[398321096,1765537840785,-612.09314852,0.00035376,2]
[398321098,1765537840794,-150.0,0.00035605,7]
[398321100,1765537840803,-150.0,0.00035616,94]
[398321102,1765537840812,-600.0,0.00035616,30]
[398321104,1765537840822,-349.0,0.00035674,2]
[398321106,1765537840831,-879.0,0.0003569,3]
[398321107,1765537840840,-7646.28781562,0.0003572,2]
[398321108,1765537840850,-600.0,0.0003589,30]
[398321109,1765537840859,-612.09314852,0.00035902,2]
[398321110,1765537840868,-349.0,0.00035922,7]
[398321111,1765537840878,-349.0,0.00035931,7]
[398321112,1765537840887,-2514.17,0.0003601,2]
[398321113,1765537840896,-2039.52,0.0003601,2]
[398321115,1765537840906,-5000.0,0.0003602,2]
[398321116,1765537840915,-7646.28781562,0.00036083,2]
[398321117,1765537840925,-5000.0,0.00036093,2]
[398321118,1765537840935,-4700.2,0.00036119,2]
[398321119,1765537840945,-600.0,0.00036164,30]
[398321120,1765537840954,-7646.28781562,0.00036175,2]
[398321121,1765537840964,-5000.0,0.00036176,2]
[398321122,1765537840973,-500.0,0.00036184,30]
[398321123,1765537840983,-5000.0,0.00036185,2]
[398321124,1765537840993,-15292.5756312,0.00036195,2]
[398321125,1765537841002,-2039.52,0.00036195,2]
[398321126,1765537841012,-2508.81,0.00036202,2]
[398321127,1765537841022,-25000.0,0.00036205,2]
[398321128,1765537841031,-4456.17,0.00036229,2]
[398321129,1765537841041,-500.0,0.00036234,30]
[398321130,1765537841050,-500.0,0.00036234,30]
[398321131,1765537841059,-506.13624996,0.00036234,30]
[398321132,1765537841068,-237.0,0.00036234,31]
[398321133,1765537841078,-5000.0,0.00036235,2]
[398321134,1765537841087,-7646.28781562,0.00036236,2]
[398321135,1765537841101,-5000.0,0.00036246,2]
[398321136,1765537841110,-15292.5756312,0.00036293,2]
[398321137,1765537841120,-1103.43605925,0.00036293,2]
[398321138,1765537841130,-2039.52,0.00036293,2]
[398321139,1765537841139,-351.0,0.00036294,7]
[398321140,1765537841149,-25000.0,0.00036303,2]
[398321141,1765537841159,-5000.0,0.00036303,2]
[398321142,1765537841169,-2502.05,0.00036322,2]
[398321143,1765537841179,-7646.28781562,0.00036327,3]
[398321144,1765537841189,-5000.0,0.00036329,2]
[398321145,1765537841199,-4765.0,0.00036333,2]
[398321146,1765537841209,-1103.43605925,0.00036336,2]
[398321147,1765537841219,-15292.5756312,0.00036346,3]
[398321148,1765537841229,-1103.43605925,0.00036346,2]
[398321149,1765537841239,-159.67108242,0.00036346,24]
[398321150,1765537841248,-151.0,0.00036346,31]
[398321151,1765537841258,-151.0,0.00036346,31]
[398321152,1765537841267,-151.0,0.00036346,31]
[398321153,1765537841277,-151.0,0.00036346,31]
[398321154,1765537841286,-2501.15,0.00036347,2]
[398321155,1765537841296,-2514.17,0.0003635,2]
[398321156,1765537841305,-25000.0,0.00036356,2]
[398321157,1765537841315,-151.0,0.00036356,15]
[398321158,1765537841324,-151.0,0.00036356,31]
[398321159,1765537841333,-7646.28781562,0.0003636,3]
[398321160,1765537841343,-1103.43605925,0.00036387,2]
[398321161,1765537841352,-5000.0,0.00036389,2]
[398321162,1765537841362,-7646.28781562,0.00036391,3]
[398321163,1765537841372,-5000.0,0.00036397,2]
[398321164,1765537841382,-5000.0,0.00036411,2]
[398321165,1765537841391,-7646.28781562,0.00036416,3]
[398321166,1765537841401,-1103.43605925,0.00036416,3]
[398321167,1765537841411,-7646.28781562,0.0003642,3]
[398321168,1765537841421,-349.0,0.00036426,7]
[398321169,1765537841430,-7646.28781562,0.00036426,3]
[398321170,1765537841440,-5000.0,0.00036427,2]
[398321171,1765537841450,-612.09314852,0.00036427,2]
[398321172,1765537841459,-1103.43605925,0.00036432,3]
[398321173,1765537841469,-15292.5756312,0.00036436,3]
[398321174,1765537841478,-1103.43605925,0.00036436,3]
[398321175,1765537841488,-600.0,0.00036438,30]
[398321176,1765537841498,-5000.0,0.00036442,2]
[398321177,1765537841507,-151.0,0.00036442,31]
[398321178,1765537841516,-151.0,0.00036442,14]
[398321179,1765537841526,-151.0,0.00036442,31]
[398321180,1765537841536,-151.0,0.00036442,31]
[398321181,1765537841545,-151.0,0.00036444,31]
[398321182,1765537841555,-7646.28781562,0.00036444,3]
[398321183,1765537841564,-5000.0,0.00036446,2]
[398321184,1765537841573,-25000.0,0.00036446,2]
[398321185,1765537841583,-151.0,0.00036454,31]
[398321186,1765537841593,-151.0,0.00036454,31]
[398321187,1765537841602,-151.0,0.00036454,31]
[398321188,1765537841611,-15292.5756312,0.00036454,3]
[398321189,1765537841621,-1103.43605925,0.00036454,3]
[398321190,1765537841631,-500.0,0.00036463,30]
[398321191,1765537841641,-14566.8187257,0.00036464,2]
[398321192,1765537841675,-699.99999955,0.00036464,2]
[398321218,1765537865528,-3860.09243218,0.00034996,2]
[398321219,1765537865545,-9733.18127475,0.00036464,2]
[398321220,1765537865560,-2501.16,0.0003649,2]
[398321221,1765537865576,-1103.43605925,0.0003653,3]
[398321222,1765537865591,-7646.28781562,0.0003654,3]
[398321223,1765537865607,-5000.0,0.0003655,2]
[398321224,1765537865621,-151.0,0.00036614,15]
[398321225,1765537865636,-151.0,0.00036614,31]
[398321226,1765537865649,-164.34450864,0.00036614,8]
[398321227,1765537865663,-5000.0,0.00036633,2]
[398321228,1765537865676,-7646.28781562,0.00036647,3]
[398321229,1765537865690,-5000.0,0.00036657,2]
[398321230,1765537865703,-1103.43605925,0.00036683,3]
[398321231,1765537865715,-349.0,0.00036684,2]
[398321232,1765537865728,-152.0,0.00036685,3]
[398321233,1765537865742,-7646.28781562,0.00036692,3]
[398321234,1765537865755,-7646.28781562,0.00036702,3]
[398321235,1765537865768,-5000.0,0.00036707,2]
[398321236,1765537865781,-1000.0,0.00036712,14]
[398321237,1765537865794,-500.0,0.00036712,14]
[398321238,1765537865811,-800.0,0.00036712,14]
[398321239,1765537865824,-5000.0,0.00036712,2]
[398321240,1765537865837,-600.0,0.00036712,30]
[398321241,1765537865851,-1103.43605925,0.00036732,3]
[398321242,1765537865864,-7646.28781562,0.00036742,3]
[398321243,1765537865878,-151.975335,0.00036747,31]
[398321244,1765537865891,-5000.0,0.00036752,2]
[398321245,1765537865903,-151.0,0.00036752,31]
[398321246,1765537865916,-391.957637,0.00036752,31]
[398321247,1765537865930,-391.957637,0.00036752,31]
[398321248,1765537865942,-391.957637,0.00036752,31]
[398321249,1765537865954,-391.957637,0.00036752,31]
[398321250,1765537865967,-1103.43605925,0.00036757,3]
[398321251,1765537865979,-13544.53,0.00036757,2]
[398321252,1765537865991,-151.0,0.00036757,31]
[398321253,1765537866004,-7646.28781562,0.00036767,3]
[398321254,1765537866016,-7646.28781562,0.0003677,3]
[398321255,1765537866030,-1103.43605925,0.00036777,3]
[398321256,1765537866043,-7646.28781562,0.00036778,3]
[398321257,1765537866056,-151.0,0.00036778,31]
[398321258,1765537866068,-151.0,0.00036778,31]
[398321259,1765537866079,-151.0,0.00036778,31]
[398321260,1765537866091,-15292.5756312,0.00036787,3]
[398321261,1765537866104,-1103.43605925,0.00036787,3]
[398321262,1765537866116,-5000.0,0.00036788,2]
[398321263,1765537866128,-151.0,0.00036788,31]
[398321264,1765537866141,-219.250474,0.00036788,31]
[398321265,1765537866153,-151.0,0.00036788,31]
[398321266,1765537866165,-25000.0,0.00036797,2]
[398321267,1765537866178,-500.0,0.000368,30]
[398321268,1765537866191,-500.0,0.000368,30]
[398321269,1765537866203,-500.0,0.000368,30]
[398321270,1765537866215,-500.0,0.000368,30]
[398321271,1765537866227,-500.0,0.000368,30]
[398321272,1765537866241,-500.0,0.000368,30]
[398321273,1765537866253,-500.0,0.000368,30]
[398321274,1765537866264,-500.0,0.000368,30]
[398321275,1765537866276,-500.0,0.000368,30]
[398321276,1765537866288,-500.0,0.000368,30]
[398321277,1765537866299,-800.0,0.000368,30]
[398321278,1765537866312,-500.0,0.000368,30]
[398321279,1765537866323,-5000.0,0.00036816,2]
[398321280,1765537866336,-7646.28781562,0.00036817,3]
[398321281,1765537866348,-1103.43605925,0.00036828,3]
[398321282,1765537866359,-2508.82,0.00036837,2]
[398321283,1765537866371,-5000.0,0.00036838,2]
[398321284,1765537866383,-7646.28781562,0.00036843,3]
[398321285,1765537866395,-7646.28781562,0.0003686,3]
[398321286,1765537866407,-5000.0,0.00036863,2]
[398321287,1765537866419,-151.0,0.00036863,31]
[398321288,1765537866431,-1103.43605925,0.00036867,3]
[398321289,1765537866443,-4646.39,0.0003687,2]
[398321290,1765537866454,-5000.0,0.00036877,2]
[398321291,1765537866468,-7646.28781562,0.00036882,3]
[398321292,1765537866480,-7646.28781562,0.0003689,3]
[398321293,1765537866491,-5000.0,0.00036892,2]
[398321294,1765537866503,-1103.43605925,0.00036896,3]
[398321295,1765537866515,-2502.04,0.00036899,2]
[398321296,1765537866527,-7646.28781562,0.00036906,3]
[398321297,1765537866539,-5000.0,0.0003691,2]
[398321298,1765537866551,-5000.0,0.00036916,2]
[398321299,1765537866563,-7646.28781562,0.0003692,3]
[398321300,1765537866575,-1103.43605925,0.0003692,3]
[398321301,1765537866587,-5000.0,0.00036929,2]
[398321302,1765537866598,-7646.28781562,0.0003693,3]
[398321303,1765537866610,-5000.0,0.00036936,2]
[398321304,1765537866621,-151.0,0.0003694,31]
[398321305,1765537866633,-151.0,0.0003694,31]
[398321306,1765537866644,-151.0,0.0003694,31]
[398321307,1765537866657,-15292.5756312,0.0003694,3]
[398321308,1765537866669,-1103.43605925,0.0003694,3]
[398321309,1765537866681,-349.0,0.00036948,120]
[398321310,1765537866693,-168.689296,0.00036948,31]
[398321311,1765537866705,-176.967404,0.00036948,31]
[398321312,1765537866716,-25000.0,0.0003695,2]
[398321313,1765537866728,-151.0,0.0003695,31]
[398321314,1765537866739,-391.957637,0.0003695,31]
[398321315,1765537866751,-391.957637,0.0003695,31]
[398321316,1765537866763,-391.957637,0.0003695,31]
[398321317,1765537866775,-391.957637,0.0003695,31]
[398321318,1765537866787,-612.09314852,0.00036953,2]
[398321319,1765537866800,-351.0,0.0003697,2]
[398321320,1765537866812,-5000.0,0.00036982,2]
[398321321,1765537866823,-600.0,0.00036986,30]
[398321322,1765537866835,-891.82,0.0003702,5]
[398321323,1765537866847,-175.96,0.00037069,2]
[398321324,1765537866859,-1103.43605925,0.0003709,3]
[398321325,1765537866870,-300.0,0.00037151,30]
[398321326,1765537866883,-7646.28781562,0.00037249,3]
[398321327,1765537866894,-600.0,0.0003726,30]
[398321328,1765537866906,-171.86,0.00037263,2]
[398321329,1765537866918,-349.0,0.00037299,2]
[398321330,1765537866930,-200.0,0.00037305,2]
[398321331,1765537866942,-151.0,0.00037367,31]
[398321332,1765537866954,-200.0,0.00037375,60]
[398321333,1765537866966,-164.35,0.00037377,2]
[398321334,1765537866978,-151.0,0.00037378,31]
[398321335,1765537866990,-209.7,0.00037386,2]
[398321336,1765537867002,-264.35,0.0003739,2]
[398321337,1765537867014,-612.09314852,0.00037479,2]
[398321338,1765537867025,-150.0,0.00037479,7]
[398321339,1765537867037,-1000.0,0.00037534,14]
[398321340,1765537867048,-800.0,0.00037534,14]
[398321341,1765537867061,-600.0,0.00037534,30]
[398321342,1765537867072,-349.0,0.00037589,2]
[398321343,1765537867084,-175.96,0.00037712,2]
[398321344,1765537867096,-600.0,0.00037808,30]
[398321345,1765537867107,-391.957637,0.0003787,31]
[398321346,1765537867119,-391.957637,0.0003787,31]
[398321347,1765537867132,-391.957637,0.0003787,31]
[398321348,1765537867144,-391.957637,0.0003787,31]
[398321349,1765537867156,-1752.65772,0.0003797,2]
[398321350,1765537867168,-1103.43605925,0.0003799,3]
[398321351,1765537867180,-168.34383786,0.0003799,2]
[398321352,1765537867770,-500.0,0.00038,30]
[398321353,1765537867783,-1345.0,0.00038,28]
[398321354,1765537867793,-1000.0,0.00038,30]
[398321355,1765537867806,-1000.0,0.00038,30]
[398321356,1765537867816,-2000.0,0.00038,30]
[398321357,1765537867826,-612.09314852,0.00038004,2]
[398321358,1765537867835,-256.607653,0.00038035,31]
[398321359,1765537867844,-258.211558,0.00038035,31]
[398321360,1765537867853,-180.42313303,0.00038056,2]
[398321361,1765537867862,-1000.0,0.00038082,120]
[398321362,1765537867872,-600.0,0.00038082,30]
[398321363,1765537867882,-1000.0,0.00038156,2]
[398321364,1765537867892,-25475.2154,0.00038156,2]
[398321365,1765537867901,-2000.0,0.00038164,3]
[398321366,1765537867911,-2000.0,0.00038164,3]
[398321367,1765537867920,-276.0,0.00038184,5]
[398321368,1765537867929,-349.0,0.00038221,120]
[398321369,1765537867939,-349.0,0.00038233,2]
[398321370,1765537867948,-300.0,0.00038247,40]
[398321371,1765537867958,-500.0,0.00038255,30]
[398321372,1765537867968,-500.0,0.00038255,30]
[398321373,1765537867977,-500.0,0.00038255,30]
[398321374,1765537867987,-509.14584126,0.00038255,30]
[398321375,1765537867996,-507.74856479,0.00038255,30]
[398321376,1765537868006,-500.0,0.00038255,30]
[398321377,1765537868016,-179.891928,0.00038255,30]
[398321378,1765537868026,-500.0,0.00038255,30]
[398321379,1765537868036,-2000.0,0.00038329,120]
[398321380,1765537868046,-500.0,0.00038333,2]
[398321381,1765537868055,-6138.0,0.00038333,2]
[398321382,1765537868065,-164.85693277,0.00038333,2]
[398321383,1765537868075,-154.31095398,0.00038333,2]
[398321384,1765537868085,-500.0,0.00038333,2]
[398321385,1765537868095,-500.0,0.00038333,120]
[398321386,1765537868104,-150.0,0.00038333,2]
[398321387,1765537868114,-150.0,0.00038333,2]
[398321388,1765537868123,-3935.8,0.00038345,120]
[398321389,1765537868133,-391.957637,0.00038346,120]
[398321390,1765537868142,-391.957637,0.00038346,120]
[398321391,1765537868152,-391.957637,0.00038346,120]
[398321392,1765537868162,-391.957637,0.00038346,120]
[398321393,1765537868171,-1528.26124027,0.00038355,30]
[398321394,1765537868181,-151.0,0.00038355,30]
[398321395,1765537868191,-200.0,0.00038355,30]
[398321396,1765537868202,-500.0,0.00038355,30]
[398321397,1765537868211,-151.0,0.00038355,30]
[398321398,1765537868221,-500.0,0.00038355,30]
[398321399,1765537868230,-500.0,0.00038355,30]
[398321400,1765537868239,-428.97836391,0.00038355,30]
[398321401,1765537868249,-533.88981491,0.00038355,30]
[398321402,1765537868259,-500.0,0.00038355,30]
[398321403,1765537868268,-500.0,0.00038355,30]
[398321404,1765537868277,-151.0,0.00038355,30]
[398321405,1765537868286,-500.0,0.00038355,30]
[398321406,1765537868295,-1000.0,0.00038355,30]
[398321407,1765537868304,-151.0,0.00038355,30]
[398321408,1765537868314,-500.0,0.00038355,30]
[398321409,1765537868323,-1000.0,0.00038355,30]
[398321410,1765537868332,-151.0,0.00038355,30]
[398321411,1765537868342,-599.60298507,0.00038355,30]
[398321412,1765537868353,-500.0,0.00038355,30]
[398321413,1765537868362,-151.0,0.00038355,30]
[398321414,1765537868372,-1000.0,0.00038355,30]
[398321415,1765537868382,-500.0,0.00038355,30]
[398321416,1765537868391,-151.0,0.00038355,30]
[398321417,1765537868401,-3434.93764485,0.00038355,30]
[398321418,1765537868411,-1000.0,0.00038355,30]
[398321419,1765537868420,-200.0,0.00038355,30]
[398321420,1765537868430,-500.0,0.00038355,30]
[398321421,1765537868440,-151.0,0.00038355,30]
[398321422,1765537868449,-1000.0,0.00038355,30]
[398321423,1765537868458,-500.0,0.00038355,30]
[398321424,1765537868467,-151.0,0.00038355,30]
[398321425,1765537868477,-1000.0,0.00038355,30]
[398321426,1765537868487,-151.0,0.00038355,30]
[398321427,1765537868496,-1000.0,0.00038355,30]
[398321428,1765537868506,-500.0,0.00038355,30]
[398321429,1765537868516,-151.0,0.00038355,30]
[398321430,1765537868526,-1000.0,0.00038355,30]
[398321431,1765537868535,-500.0,0.00038355,30]
[398321432,1765537868544,-267.64499326,0.00038355,30]
[398321433,1765537868553,-500.0,0.00038355,30]
[398321434,1765537868563,-151.0,0.00038355,30]
[398321435,1765537868573,-1000.0,0.00038355,30]
[398321436,1765537868582,-500.0,0.00038355,30]
[398321437,1765537868592,-151.0,0.00038355,30]
[398321438,1765537868601,-1000.0,0.00038355,30]
[398321439,1765537868610,-500.0,0.00038355,30]
[398321440,1765537868623,-151.0,0.00038355,30]
[398321441,1765537868632,-1000.0,0.00038355,30]
[398321442,1765537868642,-1000.0,0.00038355,30]
[398321443,1765537868651,-1000.0,0.00038355,30]
[398321444,1765537868661,-1000.0,0.00038355,30]
[398321445,1765537868670,-151.0,0.00038355,30]
[398321446,1765537868680,-1000.0,0.00038355,30]
[398321447,1765537868690,-1000.0,0.00038355,30]
[398321448,1765537868699,-1000.0,0.00038355,30]
[398321449,1765537868709,-1000.0,0.00038355,30]
[398321450,1765537868719,-1000.0,0.00038355,30]
[398321451,1765537868729,-1000.0,0.00038355,30]
[398321452,1765537868738,-1000.0,0.00038355,2]
[398321453,1765537868748,-71523.91550551,0.00038356,2]
[398321454,1765537868758,-629.29258513,0.00038356,50]
[398321455,1765537868768,-2097.64195044,0.00038356,2]
[398321456,1765537868778,-1468.3493653,0.00038356,4]
[398321457,1765537868788,-500.0,0.00038356,14]
[398321458,1765537868798,-500.0,0.00038356,14]
[398321459,1765537868810,-500.0,0.00038356,14]
[398321460,1765537868820,-500.0,0.00038356,14]
[398321461,1765537868830,-500.0,0.00038356,14]
[398321462,1765537868840,-500.0,0.00038356,14]
[398321463,1765537868850,-500.0,0.00038356,14]
[398321464,1765537868859,-500.0,0.00038356,14]
[398321465,1765537868869,-500.0,0.00038356,14]
[398321466,1765537868879,-506.08701433,0.00038356,14]
[398321467,1765537868889,-500.0,0.00038356,14]
[398321468,1765537868899,-500.0,0.00038356,14]
[398321469,1765537868909,-500.0,0.00038356,14]
[398321470,1765537868919,-500.0,0.00038356,14]
[398321471,1765537868928,-500.0,0.00038356,14]
[398321472,1765537868942,-500.0,0.00038356,14]
[398321473,1765537868952,-500.0,0.00038356,14]
[398321474,1765537868962,-500.0,0.00038356,14]
[398321475,1765537868972,-500.0,0.00038356,14]
[398321476,1765537868981,-500.0,0.00038356,14]
[398321477,1765537868991,-229.1648521,0.00038356,30]
[398321478,1765537869001,-500.0,0.00038356,30]
[398321479,1765537869011,-500.0,0.00038356,30]
[398321480,1765537869022,-2843.71,0.00038356,30]
[398321481,1765537869032,-1329.63,0.00038356,30]
[398321482,1765537869041,-500.0,0.00038356,30]
[398321483,1765537869051,-605.17,0.00038356,30]
[398321484,1765537869061,-500.0,0.00038356,30]
[398321485,1765537869071,-500.0,0.00038356,30]
[398321486,1765537869080,-677.17,0.00038356,30]
[398321487,1765537869090,-610.47,0.00038356,30]
[398321488,1765537869100,-500.0,0.00038356,30]
[398321489,1765537869109,-1219.89,0.00038356,30]
[398321490,1765537869119,-500.0,0.00038356,30]
[398321491,1765537869129,-1003.5,0.00038356,30]
[398321492,1765537869138,-658.88,0.00038356,30]
[398321493,1765537869149,-621.26,0.00038356,30]
[398321494,1765537869159,-500.0,0.00038356,30]
[398321495,1765537869169,-500.0,0.00038356,30]
[398321496,1765537869179,-500.0,0.00038356,30]
[398321497,1765537869189,-500.0,0.00038356,30]
[398321498,1765537869199,-2089.28,0.00038356,30]
[398321499,1765537869209,-500.0,0.00038356,30]
[398321500,1765537869218,-777.33,0.00038356,30]
[398321501,1765537869228,-500.0,0.00038356,30]
[398321502,1765537869238,-500.0,0.00038356,30]
[398321503,1765537869247,-500.0,0.00038356,30]
[398321504,1765537869257,-506.96,0.00038356,30]
[398321505,1765537869267,-600.44,0.00038356,30]
[398321506,1765537869276,-500.0,0.00038356,30]
[398321507,1765537869287,-557.42,0.00038356,30]
[398321508,1765537869296,-500.0,0.00038356,30]
[398321509,1765537869308,-610.54,0.00038356,30]
[398321510,1765537869317,-500.0,0.00038356,30]
[398321511,1765537869326,-516.74,0.00038356,30]
[398321512,1765537869336,-500.0,0.00038356,15]
[398321513,1765537869345,-759.14,0.00038356,30]
[398321514,1765537869354,-571.0,0.00038356,30]
[398321515,1765537869364,-588.85,0.00038356,30]
[398321516,1765537869373,-1161.86,0.00038356,30]
[398321517,1765537869383,-1044.6,0.00038356,30]
[398321518,1765537869392,-500.0,0.00038356,30]
[398321519,1765537869402,-2199.62,0.00038356,30]
[398321520,1765537869412,-500.0,0.00038356,30]
[398321521,1765537869421,-500.0,0.00038356,30]
[398321522,1765537869431,-468.44295275,0.00038356,30]
[398321523,1765537869440,-503.79,0.00038356,30]
[398321524,1765537869450,-500.0,0.00038356,30]
[398321525,1765537869460,-500.0,0.00038356,30]
[398321526,1765537869470,-500.0,0.00038356,30]
[398321527,1765537869479,-500.0,0.00038356,30]
[398321528,1765537869489,-809.01,0.00038356,30]
[398321529,1765537869498,-500.0,0.00038356,30]
[398321530,1765537869508,-719.27,0.00038356,30]
[398321531,1765537869519,-500.0,0.00038356,30]
[398321532,1765537869529,-578.6,0.00038356,30]
[398321533,1765537869539,-500.0,0.00038356,30]
[398321534,1765537869549,-500.0,0.00038356,30]
[398321535,1765537869558,-2620.34,0.00038356,30]
[398321536,1765537869568,-1731.68,0.00038356,30]
[398321537,1765537869578,-517.1,0.00038356,30]
[398321538,1765537869587,-2018.77,0.00038356,30]
[398321539,1765537869598,-500.0,0.00038356,30]
[398321540,1765537869607,-822.61,0.00038356,30]
[398321541,1765537869616,-500.0,0.00038356,30]
[398321542,1765537869626,-500.0,0.00038356,30]
[398321543,1765537869636,-511.8,0.00038356,30]
[398321544,1765537869646,-500.0,0.00038356,30]
[398321545,1765537869655,-500.0,0.00038356,30]
[398321546,1765537869664,-1245.76,0.00038356,30]
[398321547,1765537869674,-1929.49,0.00038356,30]
[398321548,1765537869683,-500.0,0.00038356,30]
[398321549,1765537869693,-500.0,0.00038356,30]
[398321550,1765537869702,-629.76,0.00038356,30]
[398321551,1765537869712,-500.0,0.00038356,30]
[398321552,1765537869721,-500.0,0.00038356,30]
[398321553,1765537869731,-500.0,0.00038356,30]
[398321554,1765537869741,-504.87,0.00038356,30]
[398321555,1765537869750,-2747.32,0.00038356,30]
[398321556,1765537869759,-205.68433423,0.00038356,30]
[398321557,1765537869768,-3082.74,0.00038356,30]
[398321558,1765537869777,-500.0,0.00038356,30]
[398321559,1765537869787,-1765.66,0.00038356,30]
[398321560,1765537869796,-593.497325,0.00038356,10]
[398321561,1765537869809,-992.27,0.00038356,30]
[398321562,1765537869819,-810.69,0.00038356,30]
[398321563,1765537869828,-669.73,0.00038356,30]
[398321564,1765537869837,-1342.66,0.00038356,30]
[398321565,1765537869847,-500.0,0.00038356,30]
[398321566,1765537869856,-403.92685157,0.00038356,30]
[398321567,1765537869865,-648.8,0.00038356,30]
[398321568,1765537869875,-500.0,0.00038356,30]
[398321569,1765537869884,-682.03,0.00038356,30]
[398321570,1765537869894,-1864.3,0.00038356,30]
[398321571,1765537869903,-500.0,0.00038356,30]
[398321572,1765537869916,-500.0,0.00038356,30]
[398321573,1765537869926,-500.0,0.00038356,30]
[398321574,1765537869935,-689.18,0.00038356,30]
[398321575,1765537869944,-403.04933716,0.00038356,30]
[398321576,1765537869954,-401.93519087,0.00038356,30]
[398321577,1765537869963,-598.31,0.00038356,30]
[398321578,1765537869972,-792.27,0.00038356,30]
[398321579,1765537869982,-2535.84,0.00038356,30]
[398321580,1765537869991,-500.0,0.00038356,30]
[398321581,1765537870000,-500.0,0.00038356,30]
[398321582,1765537870009,-500.0,0.00038356,30]
[398321583,1765537870018,-1454.84,0.00038356,30]
[398321584,1765537870028,-500.0,0.00038356,30]
[398321585,1765537870037,-500.0,0.00038356,30]
[398321586,1765537870047,-500.0,0.00038356,30]
[398321587,1765537870056,-836.48,0.00038356,30]
[398321588,1765537870066,-716.61,0.00038356,30]
[398321589,1765537870075,-568.09859651,0.00038356,30]
[398321590,1765537870085,-630.54,0.00038356,30]
[398321591,1765537870094,-500.0,0.00038356,30]
[398321592,1765537870103,-542.7,0.00038356,30]
[398321593,1765537870113,-529.56895351,0.00038356,30]
[398321594,1765537870122,-500.0,0.00038356,30]
[398321595,1765537870131,-625.15,0.00038356,30]
[398321596,1765537870140,-500.0,0.00038356,30]
[398321597,1765537870149,-2978.69,0.00038356,30]
[398321598,1765537870166,-500.0,0.00038356,30]
[398321599,1765537870176,-566.99,0.00038356,30]